[Event "GCT Superbet Blitz Poland 2025"]
[Site "Warsaw"]
[Date "2025.04.30"]
[Round "11"]
[White "Vachier-Lagrave, Maxime"]
[Black "Duda, Jan-Krzysztof"]
[Result "1-0"]
[ECO "B29"]
[WhiteElo "2722"]
[BlackElo "2739"]
[Annotator "ChessBase"]
[PlyCount "101"]
[EventDate "2025.??.??"]
[EventType "blitz"]
[TimeControl "300+2"]

1. e4 {[%emt 0:00:01]} c5 {[%emt 0:00:01]} 2. Nf3 {[%emt 0:00:01]} Nf6 {[%emt 0:00:01]} 3. e5 {[%emt 0:00:02]} Nd5 {[%emt 0:00:01]} 4. Nc3 {[%emt 0:00:01]} Nxc3 {[%emt 0:00:01]} 5. dxc3 {[%emt 0:00:01]} Nc6 {[%emt 0:00:02]} 6. Bd3 {[%emt 0:00:18]} e6 {[%emt 0:00:04]} 7. Qe2 {[%emt 0:00:02]} Qc7 {[%emt 0:00:03]} ({RR} 7... b6 8. Bf4 Bb7 9. O-O-O Qc7 10. h4 h6 11. h5 O-O-O 12. Ba6 d5 13. exd6 Bxd6 14. Bxb7+ Kxb7 15. Bxd6 Rxd6 16. Qe4 Rhd8 17. Rxd6 Qxd6 18. b3 f5 19. Qe2 e5 20. Rd1 Qxd1+ 21. Qxd1 Rxd1+ 22. Kxd1 {Schut,H (2088)-Titarov,V (2159) chess.com INT 2025 0-1 (35)}) 8. Bf4 {[%emt 0:00:16]} h6 {[%emt 0:00:06]} 9. h4 {[%emt 0:00:02]} a6 {[%emt 0:00:11]} 10. a4 $146 {[%emt 0:00:06]} ({RR} 10. O-O b5 11. c4 b4 12. Bg3 Bb7 13. Be4 Ne7 14. Nd2 Bxe4 15. Nxe4 Nf5 16. Rfd1 Be7 17. h5 Nxg3 18. Nxg3 O-O 19. Rd3 d6 20. Rad1 Rad8 21. exd6 Bxd6 22. Ne4 Bh2+ 23. Kh1 Rxd3 24. Rxd3 Be5 {Martin Barcelo,C (2179)-Lagarde,M (2651) Sitges 2020 ½-½ (76)}) ({RR} 10. O-O b5 11. c4 b4 12. Bg3 Bb7 13. Be4 Ne7 14. Nd2 Bxe4 15. Nxe4 Nf5 16. Rfd1 Be7 17. h5 Nxg3 18. Nxg3 O-O 19. Rd3 d6 20. Rad1 Rad8 21. exd6 Bxd6 22. Ne4 Bh2+ 23. Kh1 Rxd3 24. Rxd3 Be5 {Martin Barcelo,C (2179)-Lagarde,M (2651) Sitges 2020 ½-½ (76)}) 10... b6 {[%emt 0:00:10]} 11. Bg3 {[%emt 0:00:05]} Bb7 {[%emt 0:00:04]} 12. Rd1 {[%emt 0:00:05]} Na5 {[%emt 0:00:28]} 13. h5 {[%emt 0:00:01]} c4 {[%emt 0:00:16]} 14. Be4 {[%emt 0:00:01]} Bxe4 {[%emt 0:00:01]} 15. Qxe4 {[%emt 0:00:01]} Qc6 {[%emt 0:00:01]} 16. Rh4 {[%emt 0:00:10]} Qxe4+ {[%emt 0:00:29]} 17. Rxe4 {[%emt 0:00:01]} Rc8 {[%emt 0:00:04]} 18. Red4 {[%emt 0:00:12]} Rc7 {[%emt 0:00:02]} 19. Nd2 {[%emt 0:00:01]} Bc5 {[%emt 0:00:25]} 20. Rg4 {[%emt 0:00:02]} O-O {[%emt 0:00:07]} 21. Ne4 {[%emt 0:00:12]} Kh7 {[%emt 0:00:20]} 22. Ke2 {[%emt 0:00:51]} Rb8 {[%emt 0:00:16]} 23. Bf4 {[%emt 0:00:16]} Bf8 {[%emt 0:00:18]} 24. Ra1 {[%emt 0:00:32]} Nc6 {[%emt 0:00:07]} 25. b4 {[%emt 0:00:42]} cxb3 {[%emt 0:00:17]} 26. cxb3 {[%emt 0:00:01]} b5 {[%emt 0:00:06]} 27. b4 {[%emt 0:00:09]} a5 {[%emt 0:00:10]} 28. bxa5 {[%emt 0:00:07]} Nxa5 {[%emt 0:00:18]} 29. Be3 {[%emt 0:00:46]} Nc4 {[%emt 0:00:08]} 30. Bd4 {[%emt 0:00:05]} Ra8 {[%emt 0:00:12]} 31. Nd6 {[%emt 0:00:08]} bxa4 {[%emt 0:00:43]} 32. Nxf7 {[%emt 0:00:01]} d5 {[%emt 0:00:05]} 33. Nd6 {[%emt 0:00:04]} Nxd6 {[%emt 0:00:03]} 34. exd6 {[%emt 0:00:01]} Bxd6 {[%emt 0:00:01]} 35. Rg6 {[%emt 0:00:01]} Re7 {[%emt 0:00:06]} 36. Kd3 {[%emt 0:00:11]} a3 {[%emt 0:00:01]} 37. Ra2 {[%emt 0:00:00]} Ra6 {[%emt 0:00:13]} 38. g3 {[%emt 0:00:04]} Ra8 {[%emt 0:00:14]} 39. f4 {[%emt 0:00:01]} Kg8 {[%emt 0:00:02]} 40. Kc2 {[%emt 0:00:09]} Kf8 {[%emt 0:00:02]} 41. Kd3 {[%emt 0:00:01]} Ra6 {[%emt 0:00:02]} 42. Kc2 {[%emt 0:00:10]} Ra8 {[%emt 0:00:00]} 43. g4 {[%emt 0:00:03]} Rd8 {[%emt 0:00:04]} 44. Kd3 {[%emt 0:00:03]} Bxf4 {[%emt 0:00:02]} 45. Rxa3 Bd6 {[%emt 0:00:02]} 46. Ra6 {[%emt 0:00:01]} Kg8 {[%emt 0:00:01]} 47. Bf6 {[%emt 0:00:03]} Rdd7 {[%emt 0:00:03]} 48. Rxd6 {[%emt 0:00:04]} Rxd6 {[%emt 0:00:02]} 49. Bxe7 {[%emt 0:00:00]} Ra6 {[%emt 0:00:02]} 50. Bf6 {[%emt 0:00:01]} Kf7 {[%emt 0:00:02]} 51. Bxg7 {[%emt 0:00:02]} 1-0

[Event "GCT Superbet Blitz Poland 2025"]
[Site "Warsaw"]
[Date "2025.04.30"]
[Round "11"]
[White "Deac, Bogdan-Daniel"]
[Black "Gavrilescu, David"]
[Result "1/2-1/2"]
[ECO "B05"]
[WhiteElo "2668"]
[BlackElo "2554"]
[Annotator "ChessBase"]
[PlyCount "48"]
[EventDate "2025.??.??"]
[EventType "blitz"]
[TimeControl "300+2"]

1. d4 {[%emt 0:00:02]} d5 {[%emt 0:00:01]} 2. Nf3 {[%emt 0:00:02]} Nf6 {[%emt 0:00:02]} 3. e3 {[%emt 0:00:01]} c5 {[%emt 0:00:04]} 4. Be2 {[%emt 0:00:02]} Nc6 {[%emt 0:00:04]} 5. c3 {[%emt 0:00:02]} cxd4 {[%emt 0:00:09]} 6. exd4 {[%emt 0:00:02]} Bg4 {[%emt 0:00:03]} 7. Bf4 {[%emt 0:00:28]} ({RR} 7. O-O e6 8. Bf4 Bd6 9. Bg3 O-O {½-½ (10) De Filomeno,S (2338)-Stella,L (2134) Acqui Terme 2012}) 7... e6 {[%emt 0:00:03]} 8. Nbd2 {[%emt 0:00:02]} Bd6 {[%emt 0:00:05]} 9. Bg3 {[%emt 0:00:10]} ({RR} 9. Bxd6 Qxd6 10. O-O O-O 11. Re1 Qc7 12. a4 Rab8 13. h3 Bh5 14. Bd3 a6 15. Qe2 Rfe8 16. Qe3 Bg6 17. Bxg6 hxg6 18. Ne5 Nd7 19. Nd3 Na5 20. Nf3 Nc4 21. Qg5 a5 22. Rac1 Nd6 23. Qf4 Rec8 {Keymer,V (2693)-Praggnanandhaa,R (2676) chess24.com INT 2022 1-0 (43)}) ({RR} 9. Bxd6 Qxd6 10. O-O O-O 11. h3 Bh5 12. Re1 Rab8 13. a4 Qc7 14. Qb3 a5 15. Bb5 Na7 16. Bd3 Nc6 17. Re3 Bg6 18. Bf1 Ne4 19. Nxe4 Bxe4 20. Nd2 Bg6 21. h4 h6 22. g3 e5 23. Nf3 e4 {Madaminov,M (2521)-Kreken,E (2302) chess.com INT 2025 1-0 (60)}) 9... O-O {[%emt 0:00:04]} 10. O-O {[%emt 0:00:03]} Qc7 $146 {[%emt 0:00:10]} 11. Re1 {[%emt 0:00:13]} Nd7 {[%emt 0:00:16]} 12. Bd3 {[%emt 0:00:12]} h6 {[%emt 0:00:18]} 13. a4 {[%emt 0:01:53]} Rae8 {[%emt 0:00:14]} 14. Qc2 {[%emt 0:00:11]} a6 {[%emt 0:00:32]} 15. Re3 {[%emt 0:00:28]} Bxg3 {[%emt 0:00:33]} 16. hxg3 {[%emt 0:00:01]} e5 {[%emt 0:00:04]} 17. dxe5 {[%emt 0:00:05]} Ndxe5 {[%emt 0:00:03]} 18. Nxe5 {[%emt 0:00:16]} Rxe5 {[%emt 0:00:02]} 19. Rxe5 {[%emt 0:00:21]} Qxe5 {[%emt 0:00:23]} 20. Nf3 {[%emt 0:00:25]} Qf6 {[%emt 0:00:11]} 21. Nh2 {[%emt 0:00:02]} Be6 {[%emt 0:00:08]} 22. Nf3 {[%emt 0:00:03]} Bg4 {[%emt 0:00:04]} 23. Nh2 {[%emt 0:00:15]} Be6 {[%emt 0:00:02]} 24. Nf3 {[%emt 0:00:04]} Bg4 {[%emt 0:00:40]} 1/2-1/2

[Event "GCT Superbet Blitz Poland 2025"]
[Site "Warsaw"]
[Date "2025.04.30"]
[Round "12"]
[White "Praggnanandhaa R"]
[Black "Firouzja, Alireza"]
[Result "1-0"]
[ECO "A01"]
[WhiteElo "2758"]
[BlackElo "2757"]
[Annotator "ChessBase"]
[PlyCount "81"]
[EventDate "2025.??.??"]
[EventType "blitz"]
[TimeControl "300+2"]

1. b3 {[%emt 0:00:00]} e5 {[%emt 0:00:03]} 2. Bb2 {[%emt 0:00:01]} Nc6 {[%emt 0:00:01]} 3. e3 {[%emt 0:00:01]} d5 {[%emt 0:00:22]} 4. Bb5 {[%emt 0:00:01]} Nge7 {[%emt 0:00:03]} 5. Bxe5 {[%emt 0:00:06]} a6 {[%emt 0:00:01]} 6. Bxc6+ {[%emt 0:00:00]} Nxc6 {[%emt 0:00:00]} 7. Bg3 {[%emt 0:00:01]} h5 {[%emt 0:00:04]} 8. h4 {[%emt 0:00:02]} d4 {[%emt 0:00:34]} 9. Ne2 {[%emt 0:00:21]} Be7 {[%emt 0:00:23]} ({RR} 9... Bd6 10. d3 dxe3 11. fxe3 Bg4 12. Bxd6 Qxd6 13. Nbc3 O-O-O 14. Qd2 Rhe8 15. O-O-O Qe5 16. Rde1 Qxe3 17. Qxe3 Rxe3 18. Nf4 Ree8 19. Ncd5 Nd4 20. Ne3 Ne2+ 21. Nxe2 Rxe3 22. Nf4 Rde8 23. Rxe3 Rxe3 24. Kd2 {So,W (2769)-Moussard,J (2654) Baku AZE 2023 ½-½ (44)}) ({RR} 9... Bg4 10. f3 Be6 11. Nf4 Bd6 12. O-O Qf6 13. c3 dxe3 14. dxe3 O-O-O 15. Qe1 Bc5 16. Bf2 g5 17. hxg5 Qxg5 18. Nd2 Ne5 19. Ne4 Qg7 20. Bh4 Bb6 21. Bf6 Qh6 22. Bxe5 Rhg8 23. Bd4 Bxd4 24. cxd4 {Paravyan,D (2596)-Schnaider,I (2384) chess.com INT 2025 1-0 (44)}) 10. exd4 {[%emt 0:00:54]} Nxd4 {[%emt 0:00:13]} 11. Nbc3 $146 {[%emt 0:00:06]} ({RR} 11. Nxd4 Qxd4 12. c3 Qb6 13. O-O Be6 14. d4 O-O-O 15. Nd2 g5 16. hxg5 h4 17. Be5 Rhg8 18. Ne4 Qc6 19. Qe2 Bd5 20. f3 Bxe4 21. Qxe4 Qxc3 22. Rac1 {1-0 (22) Chan,L (2147)-Parfenov,V (2193) chess.com INT 2023}) ({RR} 11. Nxd4 Qxd4 12. c3 Qb6 13. O-O Be6 14. d4 O-O-O 15. Nd2 g5 16. hxg5 h4 17. Be5 Rhg8 18. Ne4 Qc6 19. Qe2 Bd5 20. f3 Bxe4 21. Qxe4 Qxc3 22. Rac1 {1-0 (22) Chan,L (2147)-Parfenov,V (2193) chess.com INT 2023}) 11... Nf5 {[%emt 0:00:21]} 12. d4 {[%emt 0:00:27]} Nxh4 {[%emt 0:00:18]} 13. Bxh4 {[%emt 0:00:12]} Bxh4 {[%emt 0:00:01]} 14. Qd3 {[%emt 0:00:01]} g6 {[%emt 0:00:26]} 15. Qe4+ {[%emt 0:00:25]} Be7 {[%emt 0:00:01]} 16. Nd5 {[%emt 0:00:01]} Qd6 {[%emt 0:00:44]} 17. c4 {[%emt 0:01:23]} Bf5 {[%emt 0:00:17]} 18. Qe5 {[%emt 0:00:16]} Qxe5 {[%emt 0:00:20]} 19. dxe5 {[%emt 0:00:03]} Bd8 {[%emt 0:00:03]} 20. O-O-O {[%emt 0:00:15]} Kf8 {[%emt 0:00:15]} 21. Nd4 {[%emt 0:00:06]} Be4 {[%emt 0:00:24]} 22. f3 {[%emt 0:00:01]} Bxd5 {[%emt 0:00:01]} 23. cxd5 {[%emt 0:00:01]} Bg5+ {[%emt 0:00:02]} 24. Kc2 {[%emt 0:00:07]} Bf4 {[%emt 0:00:03]} 25. Rhe1 {[%emt 0:00:15]} Re8 {[%emt 0:00:02]} 26. Re4 {[%emt 0:00:04]} g5 {[%emt 0:00:24]} 27. e6 {[%emt 0:00:12]} Kg7 {[%emt 0:00:11]} 28. Rde1 {[%emt 0:00:07]} f6 {[%emt 0:00:08]} 29. g3 {[%emt 0:00:19]} Be5 {[%emt 0:00:01]} 30. f4 {[%emt 0:00:03]} Bxd4 {[%emt 0:00:04]} 31. Rxd4 {[%emt 0:00:00]} Kg6 {[%emt 0:00:02]} 32. Kd3 {[%emt 0:00:03]} h4 {[%emt 0:00:07]} 33. fxg5 {[%emt 0:00:01]} fxg5 {[%emt 0:00:05]} 34. gxh4 {[%emt 0:00:01]} Rxh4 {[%emt 0:00:02]} 35. Rxh4 {[%emt 0:00:01]} gxh4 {[%emt 0:00:01]} 36. Ke4 {[%emt 0:00:01]} Rh8 {[%emt 0:00:02]} 37. d6 {[%emt 0:00:08]} cxd6 {[%emt 0:00:01]} 38. Kd5 {[%emt 0:00:01]} h3 {[%emt 0:00:02]} 39. Kxd6 {[%emt 0:00:03]} h2 {[%emt 0:00:05]} 40. e7 {[%emt 0:00:03]} Kf7 {[%emt 0:00:02]} 41. Kd7 {[%emt 0:00:01]} 1-0

[Event "GCT Superbet Blitz Poland 2025"]
[Site "Warsaw"]
[Date "2025.04.30"]
[Round "12"]
[White "Aravindh, Chithambaram VR."]
[Black "Deac, Bogdan-Daniel"]
[Result "1-0"]
[ECO "A30"]
[WhiteElo "2749"]
[BlackElo "2668"]
[Annotator "ChessBase"]
[PlyCount "145"]
[EventDate "2025.??.??"]
[EventType "blitz"]
[TimeControl "300+2"]

1. Nf3 {[%emt 0:00:02] Sagar,Shah/CB Website} Nf6 {[%emt 0:00:02]} 2. b3 {[%emt 0:00:01]} g6 {[%emt 0:00:10]} 3. Bb2 {[%emt 0:00:01]} Bg7 {[%emt 0:00:01]} 4. g3 {[%emt 0:00:02]} b6 {[%emt 0:00:16]} 5. Bg2 {[%emt 0:00:02]} Bb7 {[%emt 0:00:02]} 6. O-O {[%emt 0:00:03]} c5 {[%emt 0:00:01]} 7. c4 {[%emt 0:00:02]} O-O {[%emt 0:00:03]} 8. e3 {[%emt 0:00:05]} Nc6 {[%emt 0:00:25]} ({RR} 8... d6 9. Qe2 Nbd7 10. Rd1 e6 11. Nc3 Qe7 12. d4 Rad8 13. Qc2 ({RR} 13. e4) 13... d5 14. Ne5 cxd4 15. exd4 Nxe5 16. dxe5 Ng4 17. cxd5 exd5 18. Bxd5 ({RR} 18. Nxd5 Bxd5 19. Rxd5 Rxd5 20. Bxd5 Bxe5 21. Rd1) 18... Nxe5 19. Qe4 Bc8 20. Re1 Bf5 21. Qe3 Qc5 22. Rad1 Bg4 ({RR} 22... Nd3 23. Rxd3 Bxd3 24. Qxd3 Bxc3) 23. Rb1 {Giri,A (2784)-Vachier Lagrave,M (2773) London 2015 CBM 170 [Sagar,Shah/CB Website] 0-1 (41)} {RR} Rxd5 24. Nxd5 Nf3+ 25. Kg2 Qxd5) 9. Qe2 {[%emt 0:00:02]} d5 {[%emt 0:00:12]} 10. d3 {[%emt 0:00:10]} ({RR} 10. cxd5 Nb4 11. d3 Qxd5 12. Ne1 Qd7 13. Bxb7 Qxb7 14. d4 cxd4 15. Bxd4 Rac8 16. a3 Nc6 17. Bc3 Na5 18. Qb2 Rxc3 {0-1 (18) Willmoth,R (2115)-Rudd,J (2243) London ENG 2024}) 10... e6 {[%emt 0:00:16]} 11. Nbd2 $146 {[%emt 0:00:05]} ({RR} 11. Nc3 Qe7 12. Rfd1 Rad8 13. Rac1 Rd7 14. a3 Rfd8 15. cxd5 exd5 16. Nb1 d4 17. e4 Na5 18. Qc2 Nxe4 19. Re1 Qd6 20. b4 cxb4 21. axb4 Qxb4 22. Ba3 Qb5 23. dxe4 d3 24. Qa2 Nb3 25. Rcd1 Rc8 {Hayrapetyan,H (2465)-Isaev,J (2310) Dubai 2015 1-0 (39)}) 11... Qe7 {[%emt 0:00:05]} 12. a3 {[%emt 0:00:16]} Rfd8 {[%emt 0:00:02]} 13. Rfe1 {[%emt 0:00:03]} Rd7 {[%emt 0:00:12]} 14. cxd5 {[%emt 0:00:17]} Nxd5 {[%emt 0:00:02]} 15. Bxg7 {[%emt 0:00:04]} Kxg7 {[%emt 0:00:02]} 16. Nc4 {[%emt 0:00:05]} Kg8 {[%emt 0:01:42]} 17. h4 {[%emt 0:00:09]} Rad8 {[%emt 0:00:44]} 18. Rac1 {[%emt 0:00:02]} Qf6 {[%emt 0:00:07]} 19. Qc2 {[%emt 0:00:09]} Nde7 {[%emt 0:00:25]} 20. Red1 {[%emt 0:00:04]} h6 {[%emt 0:00:08]} 21. Kh2 {[%emt 0:00:25]} Ba8 {[%emt 0:00:26]} 22. Qe2 {[%emt 0:00:16]} Nd5 {[%emt 0:00:04]} 23. Qc2 {[%emt 0:00:20]} Nde7 {[%emt 0:00:01]} 24. Ncd2 {[%emt 0:00:11]} Qg7 {[%emt 0:00:11]} 25. Ne4 {[%emt 0:00:30]} Nd5 {[%emt 0:00:01]} 26. d4 {[%emt 0:00:12]} f5 {[%emt 0:00:03]} 27. Ned2 {[%emt 0:00:10]} cxd4 {[%emt 0:00:01]} 28. exd4 {[%emt 0:00:04]} Nxd4 {[%emt 0:00:05]} 29. Nxd4 {[%emt 0:00:03]} Qxd4 {[%emt 0:00:01]} 30. Nf3 {[%emt 0:00:05]} Qf6 {[%emt 0:00:01]} 31. Re1 {[%emt 0:00:01]} Rc7 {[%emt 0:00:04]} 32. Qd2 {[%emt 0:00:03]} Rxc1 {[%emt 0:00:02]} 33. Qxc1 {[%emt 0:00:01]} Kg7 {[%emt 0:00:03]} 34. Ne5 {[%emt 0:00:02]} Bb7 {[%emt 0:00:02]} 35. b4 {[%emt 0:00:16]} Qe7 {[%emt 0:00:02]} 36. b5 {[%emt 0:00:21]} Qc5 {[%emt 0:00:03]} 37. Qb2 {[%emt 0:00:02]} Kh7 {[%emt 0:00:05]} 38. Rc1 {[%emt 0:00:38]} Qe7 {[%emt 0:00:01]} 39. Nc6 {[%emt 0:00:12]} Bxc6 {[%emt 0:00:01]} 40. bxc6 {[%emt 0:00:01]} Nc7 {[%emt 0:00:01]} 41. Qe5 {[%emt 0:00:02]} Qd6 {[%emt 0:00:01]} 42. Qe2 {[%emt 0:00:05]} Kg7 {[%emt 0:00:04]} 43. Re1 {[%emt 0:00:02]} Qd4 {[%emt 0:00:03]} 44. a4 {[%emt 0:00:04]} Qf6 {[%emt 0:00:01]} 45. a5 {[%emt 0:00:07]} b5 {[%emt 0:00:01]} 46. a6 {[%emt 0:00:10]} Qd4 {[%emt 0:00:02]} 47. Bf3 {[%emt 0:00:08]} b4 {[%emt 0:00:01]} 48. Kg2 {[%emt 0:00:03]} Qc3 {[%emt 0:00:02]} 49. Rd1 {[%emt 0:00:06]} Rxd1 {[%emt 0:00:04]} 50. Qxd1 {[%emt 0:00:01]} Kh7 {[%emt 0:00:04]} 51. Qd6 {[%emt 0:00:03]} Qg7 {[%emt 0:00:02]} 52. Qxb4 {[%emt 0:00:02]} Nxa6 {[%emt 0:00:01]} 53. Qa5 {[%emt 0:00:06]} Nc7 {[%emt 0:00:01]} 54. Qxa7 {[%emt 0:00:02]} Qe7 {[%emt 0:00:02]} 55. Qd4 {[%emt 0:00:05]} Kg8 {[%emt 0:00:02]} 56. Qe5 {[%emt 0:00:02]} Qg7 {[%emt 0:00:03]} 57. Qd6 {[%emt 0:00:03]} Qf7 {[%emt 0:00:02]} 58. Be2 {[%emt 0:00:03]} Ne8 {[%emt 0:00:02]} 59. Qe5 {[%emt 0:00:04]} Qe7 {[%emt 0:00:02]} 60. Bc4 {[%emt 0:00:01]} Nc7 {[%emt 0:00:01]} 61. h5 {[%emt 0:00:01]} gxh5 {[%emt 0:00:03]} 62. Qxf5 {[%emt 0:00:01]} Kg7 {[%emt 0:00:02]} 63. Qe5+ {[%emt 0:00:02]} Kg8 {[%emt 0:00:04]} 64. Qxh5 {[%emt 0:00:02]} Qf6 {[%emt 0:00:01]} 65. Qg4+ {[%emt 0:00:04]} Kf8 {[%emt 0:00:01]} 66. Qe4 {[%emt 0:00:01]} Ke7 {[%emt 0:00:03]} 67. Be2 {[%emt 0:00:02]} Kd6 {[%emt 0:00:03]} 68. Bf3 {[%emt 0:00:03]} Nd5 {[%emt 0:00:02]} 69. Qc4 {[%emt 0:00:01]} Nc7 {[%emt 0:00:02]} 70. Qb4+ {[%emt 0:00:01]} Ke5 {[%emt 0:00:02]} 71. Qb2+ {[%emt 0:00:06]} Kf5 {[%emt 0:00:01]} 72. Be4+ {[%emt 0:00:01]} Kg5 {[%emt 0:00:02]} 73. f4+ {[%emt 0:00:01]} 1-0

[Event "GCT Superbet Blitz Poland 2025"]
[Site "Warsaw"]
[Date "2025.04.30"]
[Round "12"]
[White "Duda, Jan-Krzysztof"]
[Black "Fedoseev, Vladimir"]
[Result "1-0"]
[ECO "D14"]
[WhiteElo "2739"]
[BlackElo "2739"]
[Annotator "ChessBase"]
[PlyCount "97"]
[EventDate "2025.??.??"]
[EventType "blitz"]
[TimeControl "300+2"]

1. d4 {[%emt 0:00:01]} d5 {[%emt 0:00:03]} 2. Nf3 {[%emt 0:00:02]} c5 {[%emt 0:00:02]} 3. c3 {[%emt 0:00:03]} cxd4 {[%emt 0:00:11]} 4. cxd4 {[%emt 0:00:01]} Nc6 {[%emt 0:00:02]} 5. Nc3 {[%emt 0:00:02]} Nf6 {[%emt 0:00:04]} 6. Bf4 {[%emt 0:00:02]} Bf5 {[%emt 0:00:02]} 7. e3 {[%emt 0:00:03]} e6 {[%emt 0:00:02]} 8. Qb3 {[%emt 0:00:04]} Bb4 {[%emt 0:00:03]} 9. Ne5 {[%emt 0:00:05]} Qb6 {[%emt 0:00:33]} 10. Be2 {[%emt 0:01:02]} ({RR} 10. Nxc6 bxc6 11. Be2 Ne4 12. f3 Nxc3 13. bxc3 Be7 14. O-O O-O 15. c4 c5 16. cxd5 Qxb3 17. axb3 exd5 18. dxc5 Bxc5 19. Rfd1 Be6 20. Kf2 a5 21. Be5 Rfc8 22. Rdc1 Bb4 23. Bd1 Rxc1 24. Rxc1 Rc8 {Aronian,L (2784)-Vachier Lagrave,M (2788) Stavanger 2016 ½-½ (38)}) ({RR} 10. Nxc6 bxc6 11. Be2 Ne4 12. f3 Nxc3 13. bxc3 Be7 14. c4 Qxb3 15. axb3 Bb4+ 16. Kf2 a5 17. cxd5 cxd5 18. Rhc1 O-O 19. Rc6 Rfc8 20. Rac1 Rxc6 21. Rxc6 h6 22. g4 Bg6 23. Bb5 h5 24. h3 hxg4 {Pilgaard,K (2387)-Kristensen,K (2307) Denmark DEN 2025 1-0 (58)}) 10... Ne4 {[%emt 0:00:01]} 11. Rc1 {[%emt 0:00:15]} Nxe5 $146 {[%emt 0:00:07]} ({RR} 11... Bxc3+ 12. bxc3 Qxb3 13. axb3 Nxe5 14. Bxe5 f6 15. Bg3 Nxg3 16. hxg3 Kd7 17. Kd2 Kd6 18. Bd3 Bxd3 19. Kxd3 h6 20. c4 Rhc8 21. c5+ Kc6 22. Ra1 a5 23. Rhc1 Ra6 24. Rc2 Rca8 25. Ra4 Rd8 26. b4 {Nadal,B (2044)-Borrego Sanchez,F (2011) Palma de Mallorca 2000 ½-½ (42)}) 12. Bxe5 {[%emt 0:00:03]} O-O {[%emt 0:01:02]} 13. f3 {[%emt 0:00:27]} Nxc3 {[%emt 0:00:19]} 14. bxc3 {[%emt 0:00:01]} Ba5 {[%emt 0:00:04]} 15. g4 {[%emt 0:00:07]} Bg6 {[%emt 0:00:11]} 16. Kf2 {[%emt 0:00:04]} f6 {[%emt 0:00:11]} 17. Bg3 {[%emt 0:00:07]} Rfc8 {[%emt 0:00:09]} 18. c4 {[%emt 0:00:09]} Qxb3 {[%emt 0:00:15]} 19. axb3 {[%emt 0:00:02]} Bb4 {[%emt 0:00:05]} 20. h4 {[%emt 0:00:10]} a5 {[%emt 0:00:07]} 21. h5 {[%emt 0:00:05]} Be8 {[%emt 0:00:08]} 22. Bd3 {[%emt 0:00:15]} Bc6 {[%emt 0:00:01]} 23. Ra1 {[%emt 0:01:00]} Bc3 {[%emt 0:00:36]} 24. Rac1 {[%emt 0:00:44]} Bb4 {[%emt 0:00:02]} 25. Rb1 {[%emt 0:00:01]} Rd8 {[%emt 0:00:10]} 26. Rhc1 {[%emt 0:00:04]} dxc4 {[%emt 0:00:14]} 27. bxc4 {[%emt 0:00:07]} e5 {[%emt 0:00:01]} 28. d5 {[%emt 0:00:02]} Be8 {[%emt 0:00:10]} 29. Ke2 {[%emt 0:00:04]} Rac8 {[%emt 0:00:12]} 30. Be1 {[%emt 0:00:17]} Bxe1 {[%emt 0:00:24]} 31. Kxe1 {[%emt 0:00:00]} Rd6 {[%emt 0:00:12]} 32. Rc2 {[%emt 0:00:30]} b6 {[%emt 0:00:07]} 33. e4 {[%emt 0:00:04]} g6 {[%emt 0:00:09]} 34. h6 {[%emt 0:00:02]} Bd7 {[%emt 0:00:04]} 35. Rcb2 {[%emt 0:00:01]} b5 {[%emt 0:00:01]} 36. cxb5 {[%emt 0:00:02]} Rb6 {[%emt 0:00:02]} 37. Ra2 {[%emt 0:00:02]} f5 {[%emt 0:00:01]} 38. g5 {[%emt 0:00:03]} fxe4 {[%emt 0:00:03]} 39. fxe4 {[%emt 0:00:01]} Ra8 {[%emt 0:00:04]} 40. Rba1 {[%emt 0:00:02]} Bxb5 {[%emt 0:00:01]} 41. Rb2 {[%emt 0:00:02]} Bxd3 {[%emt 0:00:03]} 42. Rxb6 {[%emt 0:00:01]} Bxe4 {[%emt 0:00:01]} 43. d6 {[%emt 0:00:01]} Kf7 {[%emt 0:00:01]} 44. Rb5 {[%emt 0:00:06]} a4 {[%emt 0:00:04]} 45. Rxe5 {[%emt 0:00:01]} Bc6 {[%emt 0:00:02]} 46. Re7+ {[%emt 0:00:02]} Kg8 {[%emt 0:00:01]} 47. Rg7+ {[%emt 0:00:01]} Kh8 {[%emt 0:00:01]} 48. Rc7 {[%emt 0:00:01]} Bb5 {[%emt 0:00:04]} 49. d7 {[%emt 0:00:01]} 1-0